[Event "FIDE Womens Grand Swiss 2021"]
[Site "Riga"]
[Date "2021.11.06"]
[Round "10.25"]
[White "Divya Deshmukh"]
[Black "February, Jesse Nikki"]
[Result "1-0"]
[ECO "C02"]
[WhiteElo "2305"]
[BlackElo "1857"]
[Annotator "NA"]
[PlyCount "67"]
[EventDate "2021.10.27"]
[EventType "swiss"]
[EventCountry "LAT"]
[Tiebreak "Cut1 Buchholz+Sonneborn-Berger (Swiss)"]
[SourceTitle "playchess.com"]
[Source "ChessBase"]
[SourceQuality "1"]
[TimeControl "40/6000+30:20/3000+30:900+30"]

1. e4 {[%emt 0:10:04]} e6 {[%emt 0:12:44]} 2. d4 {[%emt 0:00:07]} d5 {[%emt 0:
00:11]} 3. e5 {[%emt 0:00:03]} c5 {[%emt 0:00:21]} 4. c3 {[%emt 0:00:04]} Nc6 {
[%emt 0:00:25]} 5. Nf3 {[%emt 0:00:05]} Qb6 {[%emt 0:00:44]} 6. Bd3 {[%emt 0:
00:04]} Bd7 {[%emt 0:01:38]} 7. O-O {[%emt 0:00:21]} f5 {[%emt 0:03:53]} 8.
Nbd2 {[%emt 0:11:56]} cxd4 {[%emt 0:04:15]} 9. Nb3 {[%emt 0:01:26]} dxc3 {
[%emt 0:02:38]} 10. bxc3 {[%emt 0:00:59]} Nh6 {[%emt 0:07:05]} 11. Bxh6 {
[%emt 0:04:54]} gxh6 {[%emt 0:00:21]} 12. c4 {[%emt 0:00:27]} Nb4 {[%emt 0:16:
17]} 13. cxd5 {[%emt 0:03:23]} Nxd3 {[%emt 0:00:49]} 14. Qxd3 {[%emt 0:00:52]}
Bb5 {[%emt 0:01:22]} 15. Qc2 {[%emt 0:01:41]} Bxf1 {[%emt 0:01:01]} 16. Rxf1 {
[%emt 0:03:18]} exd5 {[%emt 0:02:27]} 17. Nbd4 {[%emt 0:05:00]} Be7 {[%emt 0:
08:04]} 18. Rb1 {[%emt 0:18:17]} Qc5 {[%emt 0:06:38]} 19. Qxf5 {[%emt 0:01:09]}
b6 {[%emt 0:02:45]} 20. Ne6 {[%emt 0:16:43]} Qc4 {[%emt 0:06:09]} 21. Ng7+ {
[%emt 0:06:11]} Kd8 {[%emt 0:00:20]} 22. Nd4 {[%emt 0:00:03]} Bg5 {[%emt 0:06:
32]} 23. Nde6+ {[%emt 0:01:12]} Ke7 {[%emt 0:00:35]} 24. Nxg5 {[%emt 0:00:05]}
hxg5 {[%emt 0:00:42]} 25. Qxg5+ {[%emt 0:01:38]} Kd7 {[%emt 0:00:33]} 26. e6+ {
[%emt 0:00:27]} Kd6 {[%emt 0:02:43]} 27. Nf5+ {[%emt 0:00:13]} Kxe6 {[%emt 0:
01:05]} 28. Re1+ {[%emt 0:00:04]} Kd7 {[%emt 0:00:17]} 29. Qe7+ {[%emt 0:00:05]
} Kc6 {[%emt 0:00:32]} 30. Re6+ {[%emt 0:00:04]} Kb5 {[%emt 0:00:51]} 31. Nd6+
{[%emt 0:00:05]} Ka6 {[%emt 0:00:24]} 32. Qb7+ {[%emt 0:00:13]} Ka5 {[%emt 0:
00:22]} 33. Nxc4+ {[%emt 0:00:04]} dxc4 {[%emt 0:00:08]} 34. Re5+ {[%emt 0:00:
08]} 1-0

[Event "FIDE Womens Grand Swiss 2021"]
[Site "Riga"]
[Date "2021.11.07"]
[Round "11.1"]
[White "Zhu, Jiner"]
[Black "Lei, Tingjie"]
[Result "1/2-1/2"]
[ECO "C78"]
[WhiteElo "2455"]
[BlackElo "2505"]
[Annotator "RC"]
[PlyCount "107"]
[EventDate "2021.10.27"]
[EventType "swiss"]
[EventCountry "LAT"]
[Tiebreak "Cut1 Buchholz+Sonneborn-Berger (Swiss)"]
[SourceTitle "playchess.com"]
[Source "ChessBase"]
[SourceQuality "1"]
[TimeControl "40/6000+30:20/3000+30:900+30"]

1. e4 {[%emt 0:10:04]} e5 {[%emt 0:10:24]} 2. Nf3 {[%emt 0:00:07]} Nc6 {
[%emt 0:00:04]} 3. Bb5 {[%emt 0:00:05]} a6 {[%emt 0:00:04]} 4. Ba4 {[%emt 0:00:
05]} Nf6 {[%emt 0:00:04]} 5. O-O {[%emt 0:00:10]} Bc5 {[%emt 0:00:04]} 6. c3 {
[%emt 0:01:18]} b5 {[%emt 0:00:06]} 7. Bc2 {[%emt 0:00:20]} d5 {[%emt 0:00:06]}
8. d4 {[%emt 0:03:55]} dxe4 {[%emt 0:00:05]} 9. Nbd2 {[%emt 0:00:14]} exf3 {
[%emt 0:09:48]} 10. Qxf3 {[%emt 0:00:11]} Bd6 {[%emt 0:02:47]} 11. Qxc6+ {
[%emt 0:06:47]} Bd7 {[%emt 0:00:05]} 12. Qf3 {[%emt 0:00:04]} exd4 {[%emt 0:05:
21]} 13. Ne4 {[%emt 0:02:44]} Nxe4 {[%emt 0:10:56]} 14. Qxe4+ {[%emt 0:00:06]}
Be6 {[%emt 0:00:05]} 15. Bg5 {[%emt 0:07:34]} Qc8 {[%emt 0:13:22]} 16. cxd4 {
[%emt 0:00:39]} h6 {[%emt 0:03:10]} 17. Bd2 {[%emt 0:04:30]} c6 {[%emt 0:03:31]
} 18. Rac1 {[%emt 0:01:58]} Qd7 {[%emt 0:19:43]} 19. Rfe1 {[%emt 0:02:55]} Kf8
{[%emt 0:04:37]} 20. Bb3 {[%emt 0:02:43]} Bxb3 {[%emt 0:04:46]} 21. axb3 {
[%emt 0:00:06]} Re8 {[%emt 0:01:48]} 22. Qxc6 {[%emt 0:11:18]} Rxe1+ {[%emt 0:
02:32]} 23. Bxe1 {[%emt 0:00:06]} Qxc6 {[%emt 0:00:01]} 24. Rxc6 {[%emt 0:00:
08]} Ke7 {[%emt 0:00:05]} 25. f3 {[%emt 0:00:20]} Kd7 {[%emt 0:01:52]} 26. d5 {
[%emt 0:01:04]} Rc8 {[%emt 0:09:36]} 27. Rxc8 {[%emt 0:01:42]} Kxc8 {[%emt 0:
00:04]} 28. Bc3 {[%emt 0:00:05]} g6 {[%emt 0:00:34]} 29. g3 {[%emt 0:18:06]}
Kd7 {[%emt 0:00:54]} 30. Kg2 {[%emt 0:00:08]} Bc7 {[%emt 0:05:35]} 31. f4 {
[%emt 0:00:30]} Bd8 {[%emt 0:00:05]} 32. Be5 {[%emt 0:02:04]} f6 {[%emt 0:00:
21]} 33. Bc3 {[%emt 0:04:49]} Kd6 {[%emt 0:00:03]} 34. f5 {[%emt 0:00:33]} g5 {
[%emt 0:02:45]} 35. Kf3 {[%emt 0:00:51]} Kxd5 {[%emt 0:00:03]} 36. Kg4 {
[%emt 0:00:24]} Ke4 {[%emt 0:00:44]} 37. b4 {[%emt 0:04:12]} Be7 {[%emt 0:00:
46]} 38. h4 {[%emt 0:00:28]} Bd8 {[%emt 0:01:17]} 39. Kh5 {[%emt 0:00:48]} Kxf5
{[%emt 0:00:22]} 40. Kxh6 {[%emt 0:00:08]} gxh4 {[%emt 0:00:33]} 41. gxh4 {
[%emt 0:50:05]} Kg4 {[%emt 0:30:34]} 42. h5 {[%emt 0:00:00]} f5 {[%emt 0:00:03]
} 43. Kg6 {[%emt 0:00:00]} Bg5 {[%emt 0:00:18]} 44. h6 {[%emt 0:00:00]} Bxh6 {
[%emt 0:00:03]} 45. Kxh6 {[%emt 0:00:00]} f4 {[%emt 0:00:04]} 46. Kg6 {[%emt 0:
00:00]} f3 {[%emt 0:00:03]} 47. Be1 {[%emt 0:00:00]} Kf4 {[%emt 0:00:05]} 48.
Kf6 {[%emt 0:00:00]} Ke3 {[%emt 0:03:38]} 49. Ke5 {[%emt 0:00:00]} f2 {[%emt 0:
00:04]} 50. Bxf2+ {[%emt 0:00:00]} Kxf2 {[%emt 0:00:03]} 51. Kd4 {[%emt 0:00:
00]} Ke2 {[%emt 0:00:10]} 52. Kc5 {[%emt 0:00:00]} Kd3 {[%emt 0:00:04]} 53. Kb6
{[%emt 0:00:00]} Kc4 {[%emt 0:00:03]} 54. Kxa6 {[%emt 0:00:00]} 1/2-1/2

[Event "FIDE Womens Grand Swiss 2021"]
[Site "Riga"]
[Date "2021.11.07"]
[Round "11.2"]
[White "Muzychuk, Mariya"]
[Black "Harika, Dronavalli"]
[Result "1/2-1/2"]
[ECO "C47"]
[WhiteElo "2536"]
[BlackElo "2511"]
[Annotator "RC"]
[PlyCount "62"]
[EventDate "2021.10.27"]
[EventType "swiss"]
[EventCountry "LAT"]
[Tiebreak "Cut1 Buchholz+Sonneborn-Berger (Swiss)"]
[SourceTitle "playchess.com"]
[Source "ChessBase"]
[SourceQuality "1"]
[TimeControl "40/6000+30:20/3000+30:900+30"]

1. e4 {[%emt 0:10:03]} e5 {[%emt 0:10:06]} 2. Nf3 {[%emt 0:00:15]} Nc6 {
[%emt 0:00:06]} 3. Nc3 {[%emt 0:00:16]} Nf6 {[%emt 0:00:10]} 4. d4 {[%emt 0:00:
12]} exd4 {[%emt 0:00:39]} 5. Nxd4 {[%emt 0:00:05]} Bb4 {[%emt 0:00:16]} 6.
Nxc6 {[%emt 0:00:17]} bxc6 {[%emt 0:00:13]} 7. Bd3 {[%emt 0:00:11]} d5 {
[%emt 0:00:25]} 8. exd5 {[%emt 0:00:25]} O-O {[%emt 0:01:07]} 9. O-O {[%emt 0:
00:23]} Bg4 {[%emt 0:00:33]} 10. Ne2 {[%emt 0:01:20]} cxd5 {[%emt 0:02:19]} 11.
c4 {[%emt 0:00:09]} Re8 {[%emt 0:10:12]} 12. Qc2 {[%emt 0:01:15]} h6 {[%emt 0:
06:23]} 13. h3 {[%emt 0:16:17]} dxc4 {[%emt 0:04:34]} 14. Bxc4 {[%emt 0:02:21]}
Be6 {[%emt 0:00:41]} 15. Bxe6 {[%emt 0:01:40]} Rxe6 {[%emt 0:00:07]} 16. Bf4 {
[%emt 0:02:20]} Qe8 {[%emt 0:05:49]} 17. Nc3 {[%emt 0:16:51]} Qc6 {[%emt 0:11:
59]} 18. Rac1 {[%emt 0:06:32]} Bxc3 {[%emt 0:01:54]} 19. Qxc3 {[%emt 0:00:42]}
Qxc3 {[%emt 0:00:04]} 20. Rxc3 {[%emt 0:00:18]} Nd5 {[%emt 0:00:05]} 21. Rc4 {
[%emt 0:00:10]} Nxf4 {[%emt 0:00:42]} 22. Rxf4 {[%emt 0:00:03]} Rae8 {[%emt 0:
00:20]} 23. Rc4 {[%emt 0:00:58]} Re2 {[%emt 0:03:20]} 24. Rxc7 {[%emt 0:03:45]}
Rxb2 {[%emt 0:00:13]} 25. Rxa7 {[%emt 0:00:10]} Ree2 {[%emt 0:00:07]} 26. a4 {
[%emt 0:00:12]} Ra2 {[%emt 0:00:04]} 27. a5 {[%emt 0:00:26]} g6 {[%emt 0:01:46]
} 28. h4 {[%emt 0:00:50]} Re5 {[%emt 0:00:43]} 29. a6 {[%emt 0:00:20]} Rea5 {
[%emt 0:01:03]} 30. g3 {[%emt 0:00:13]} Rxa6 {[%emt 0:00:05]} 31. Rxa6 {
[%emt 0:00:02]} Rxa6 {[%emt 0:00:05]} 1/2-1/2

[Event "FIDE Womens Grand Swiss 2021"]
[Site "Riga"]
[Date "2021.11.07"]
[Round "11.3"]
[White "Paehtz, Elisabeth"]
[Black "Assaubayeva, Bibisara"]
[Result "1-0"]
[ECO "D76"]
[WhiteElo "2475"]
[BlackElo "2400"]
[Annotator "RC"]
[PlyCount "65"]
[EventDate "2021.10.27"]
[EventType "swiss"]
[EventCountry "LAT"]
[Tiebreak "Cut1 Buchholz+Sonneborn-Berger (Swiss)"]
[SourceTitle "playchess.com"]
[Source "ChessBase"]
[SourceQuality "1"]
[TimeControl "40/6000+30:20/3000+30:900+30"]

1. d4 {[%emt 0:10:02]} Nf6 {[%emt 0:10:15]} 2. Nf3 {[%emt 0:00:05]} g6 {
[%emt 0:00:08]} 3. c4 {[%emt 0:00:05]} Bg7 {[%emt 0:00:08]} 4. g3 {[%emt 0:00:
03]} O-O {[%emt 0:00:14]} 5. Bg2 {[%emt 0:00:03]} d5 {[%emt 0:00:09]} 6. cxd5 {
[%emt 0:00:03]} Nxd5 {[%emt 0:00:08]} 7. O-O {[%emt 0:00:05]} Nb6 {[%emt 0:00:
10]} 8. Nc3 {[%emt 0:00:08]} Nc6 {[%emt 0:00:06]} 9. e3 {[%emt 0:00:03]} Re8 {
[%emt 0:00:08]} 10. h3 {[%emt 0:00:05]} a5 {[%emt 0:03:00]} 11. d5 {[%emt 0:01:
48]} Nb4 {[%emt 0:00:44]} 12. e4 {[%emt 0:01:43]} c6 {[%emt 0:00:10]} 13. a3 {
[%emt 0:04:50]} Na6 {[%emt 0:00:06]} 14. dxc6 {[%emt 0:11:15]} Qxd1 {[%emt 0:
02:47]} 15. Rxd1 {[%emt 0:00:04]} bxc6 {[%emt 0:00:19]} 16. Bf1 {[%emt 0:06:59]
} Nc5 {[%emt 0:03:07]} 17. Be3 {[%emt 0:02:50]} Nba4 {[%emt 0:04:43]} 18. Nxa4
{[%emt 0:03:15]} Nxa4 {[%emt 0:00:02]} 19. Rac1 {[%emt 0:10:45]} Ba6 {[%emt 0:
07:10]} 20. Bxa6 {[%emt 0:05:57]} Rxa6 {[%emt 0:00:20]} 21. e5 {[%emt 0:00:08]}
Rc8 {[%emt 0:07:40]} 22. b3 {[%emt 0:06:10]} Nb6 {[%emt 0:02:02]} 23. b4 {
[%emt 0:02:46]} axb4 {[%emt 0:01:40]} 24. axb4 {[%emt 0:00:03]} Na4 {[%emt 0:
09:01]} 25. b5 {[%emt 0:00:45]} Raa8 {[%emt 0:00:03]} 26. bxc6 {[%emt 0:02:17]}
f6 {[%emt 0:02:22]} 27. Rd7 {[%emt 0:04:04]} Kf7 {[%emt 0:06:14]} 28. exf6 {
[%emt 0:00:19]} Bxf6 {[%emt 0:00:07]} 29. Ng5+ {[%emt 0:00:40]} Ke8 {[%emt 0:
04:35]} 30. Nxh7 {[%emt 0:03:09]} Rxc6 {[%emt 0:02:17]} 31. Rxe7+ {[%emt 0:06:
42]} Bxe7 {[%emt 0:04:35]} 32. Rxc6 {[%emt 0:00:04]} Kf7 {[%emt 0:00:11]} 33.
Ng5+ {[%emt 0:00:11]} 1-0

[Event "FIDE Womens Grand Swiss 2021"]
[Site "Riga"]
[Date "2021.11.07"]
[Round "11.4"]
[White "Badelka, Olga"]
[Black "Cori T., Deysi"]
[Result "1-0"]
[ECO "B08"]
[WhiteElo "2438"]
[BlackElo "2382"]
[Annotator "RC"]
[PlyCount "147"]
[EventDate "2021.10.27"]
[EventType "swiss"]
[EventCountry "LAT"]
[Tiebreak "Cut1 Buchholz+Sonneborn-Berger (Swiss)"]
[SourceTitle "playchess.com"]
[Source "ChessBase"]
[SourceQuality "1"]
[TimeControl "40/6000+30:20/3000+30:900+30"]

1. e4 {[%emt 0:10:03]} d6 {[%emt 0:11:17]} 2. d4 {[%emt 0:00:21]} Nf6 {[%emt 0:
03:29]} 3. Nc3 {[%emt 0:01:42]} g6 {[%emt 0:00:50]} 4. Nf3 {[%emt 0:00:30]} Bg7
{[%emt 0:04:15]} 5. Be3 {[%emt 0:00:36]} c6 {[%emt 0:01:25]} 6. Qd2 {[%emt 0:
00:45]} b5 {[%emt 0:01:35]} 7. Bd3 {[%emt 0:03:22]} Ng4 {[%emt 0:20:04]} 8. Bf4
{[%emt 0:02:28]} e5 {[%emt 0:03:20]} 9. dxe5 {[%emt 0:01:42]} dxe5 {[%emt 0:00:
14]} 10. Bg3 {[%emt 0:09:33]} f6 {[%emt 0:12:25]} 11. a4 {[%emt 0:03:06]} b4 {
[%emt 0:03:21]} 12. Nd1 {[%emt 0:00:31]} a5 {[%emt 0:01:16]} 13. Bc4 {[%emt 0:
01:36]} Ba6 {[%emt 0:05:28]} 14. Qxd8+ {[%emt 0:05:07]} Kxd8 {[%emt 0:00:01]}
15. Bxa6 {[%emt 0:00:59]} Nxa6 {[%emt 0:00:01]} 16. Nd2 {[%emt 0:00:46]} h5 {
[%emt 0:18:47]} 17. h4 {[%emt 0:07:31]} Bh6 {[%emt 0:03:21]} 18. Nc4 {[%emt 0:
05:55]} Bf4 {[%emt 0:03:58]} 19. Rh3 {[%emt 0:09:52]} Nc5 {[%emt 0:02:19]} 20.
f3 {[%emt 0:00:10]} Ne6 {[%emt 0:00:09]} 21. Bxf4 {[%emt 0:01:16]} Nxf4 {
[%emt 0:00:02]} 22. fxg4 {[%emt 0:02:07]} Nxh3 {[%emt 0:01:21]} 23. gxh3 {
[%emt 0:00:11]} hxg4 {[%emt 0:00:04]} 24. hxg4 {[%emt 0:00:06]} Rxh4 {[%emt 0:
00:01]} 25. Nf2 {[%emt 0:00:15]} Kc7 {[%emt 0:04:54]} 26. Ke2 {[%emt 0:01:24]}
Rd8 {[%emt 0:01:29]} 27. Nxa5 {[%emt 0:07:29]} Rh2 {[%emt 0:00:51]} 28. Nb3 {
[%emt 0:03:34]} Kb6 {[%emt 0:06:07]} 29. Rf1 {[%emt 0:00:15]} f5 {[%emt 0:00:
45]} 30. gxf5 {[%emt 0:00:09]} gxf5 {[%emt 0:00:01]} 31. exf5 {[%emt 0:00:45]}
Rf8 {[%emt 0:00:01]} 32. Nd2 {[%emt 0:01:37]} Rxf5 {[%emt 0:00:03]} 33. b3 {
[%emt 0:00:35]} Kc5 {[%emt 0:03:11]} 34. Nde4+ {[%emt 0:03:53]} Kb6 {[%emt 0:
00:02]} 35. Rg1 {[%emt 0:00:57]} Rh7 {[%emt 0:00:57]} 36. Rg8 {[%emt 0:01:29]}
Ka7 {[%emt 0:00:31]} 37. Rg5 {[%emt 0:03:50]} Rxg5 {[%emt 0:00:32]} 38. Nxg5 {
[%emt 0:00:05]} Rg7 {[%emt 0:00:24]} 39. Nf3 {[%emt 0:02:12]} Kb6 {[%emt 0:00:
36]} 40. Nxe5 {[%emt 0:01:01]} Kc5 {[%emt 0:00:27]} 41. Nf3 {[%emt 0:53:15]}
Kd5 {[%emt 0:23:46]} 42. Nd3 {[%emt 0:00:00]} Ke4 {[%emt 0:02:50]} 43. Nfe1 {
[%emt 0:00:00]} Kd4 {[%emt 0:08:01]} 44. Kd2 {[%emt 0:00:00]} c5 {[%emt 0:01:
43]} 45. Nb2 {[%emt 0:00:00]} Rg8 {[%emt 0:09:25]} 46. Nc4 {[%emt 0:00:00]} Rf8
{[%emt 0:02:06]} 47. Nd3 {[%emt 0:00:00]} Rh8 {[%emt 0:00:20]} 48. Kc1 {
[%emt 0:01:18]} Kc3 {[%emt 0:00:21]} 49. Ne3 {[%emt 0:00:10]} Rh1+ {[%emt 0:02:
15]} 50. Nd1+ {[%emt 0:00:03]} Kd4 {[%emt 0:00:02]} 51. N3b2 {[%emt 0:00:43]}
Rg1 {[%emt 0:02:18]} 52. Nc4 {[%emt 0:00:07]} Rh1 {[%emt 0:00:55]} 53. a5 {
[%emt 0:00:08]} Rg1 {[%emt 0:00:59]} 54. Kb2 {[%emt 0:01:20]} Kd5 {[%emt 0:01:
49]} 55. Nf2 {[%emt 0:06:48]} Kc6 {[%emt 0:00:24]} 56. Ne4 {[%emt 0:01:20]} Kb5
{[%emt 0:00:05]} 57. a6 {[%emt 0:03:23]} Rg8 {[%emt 0:01:09]} 58. Ncd6+ {
[%emt 0:01:19]} Kb6 {[%emt 0:00:36]} 59. Nb7 {[%emt 0:02:25]} c4 {[%emt 0:00:
21]} 60. bxc4 {[%emt 0:00:21]} Kxa6 {[%emt 0:00:18]} 61. Nbc5+ {[%emt 0:15:14]}
Ka5 {[%emt 0:15:49]} 62. Nd3 {[%emt 0:00:56]} Rg2 {[%emt 0:00:29]} 63. Kb3 {
[%emt 0:01:01]} Rg1 {[%emt 0:00:13]} 64. c5 {[%emt 0:02:44]} Ra1 {[%emt 0:00:
46]} 65. Kc4 {[%emt 0:01:43]} Ra4 {[%emt 0:00:32]} 66. Nd6 {[%emt 0:01:48]} Ra2
{[%emt 0:00:32]} 67. Nxb4 {[%emt 0:01:00]} Rb2 {[%emt 0:00:14]} 68. c3 {
[%emt 0:00:24]} Rd2 {[%emt 0:00:22]} 69. Nb7+ {[%emt 0:00:33]} Ka4 {[%emt 0:00:
01]} 70. c6 {[%emt 0:00:14]} Rh2 {[%emt 0:00:36]} 71. c7 {[%emt 0:00:28]} Rh4+
{[%emt 0:00:14]} 72. Kc5 {[%emt 0:00:27]} Rh5+ {[%emt 0:00:09]} 73. Nd5 {
[%emt 0:00:06]} Rh8 {[%emt 0:00:11]} 74. Nd8 {[%emt 0:00:04]} 1-0

[Event "FIDE Womens Grand Swiss 2021"]
[Site "Riga"]
[Date "2021.11.07"]
[Round "11.5"]
[White "Kosteniuk, Alexandra"]
[Black "Munguntuul, Batkhuyag"]
[Result "1/2-1/2"]
[ECO "B12"]
[WhiteElo "2518"]
[BlackElo "2433"]
[Annotator "RC"]
[PlyCount "113"]
[EventDate "2021.10.27"]
[EventType "swiss"]
[EventCountry "LAT"]
[Tiebreak "Cut1 Buchholz+Sonneborn-Berger (Swiss)"]
[SourceTitle "playchess.com"]
[Source "ChessBase"]
[SourceQuality "1"]
[TimeControl "40/6000+30:20/3000+30:900+30"]

1. e4 {[%emt 0:10:05]} c6 {[%emt 0:10:05]} 2. d4 {[%emt 0:00:05]} d5 {[%emt 0:
00:06]} 3. e5 {[%emt 0:00:04]} c5 {[%emt 0:00:12]} 4. dxc5 {[%emt 0:00:13]} e6
{[%emt 0:00:06]} 5. Bd3 {[%emt 0:00:15]} Bxc5 {[%emt 0:01:50]} 6. Qg4 {[%emt 0:
00:06]} g6 {[%emt 0:25:35]} 7. Nf3 {[%emt 0:03:34]} Nc6 {[%emt 0:02:40]} 8. O-O
{[%emt 0:05:18]} Qc7 {[%emt 0:09:31]} 9. Re1 {[%emt 0:05:15]} Bd7 {[%emt 0:14:
36]} 10. a3 {[%emt 0:05:53]} O-O-O {[%emt 0:04:08]} 11. c4 {[%emt 0:04:25]}
dxc4 {[%emt 0:02:34]} 12. Qxc4 {[%emt 0:00:44]} Qb6 {[%emt 0:01:57]} 13. Qc2 {
[%emt 0:04:53]} Kb8 {[%emt 0:00:38]} 14. b4 {[%emt 0:03:29]} Bd4 {[%emt 0:02:
53]} 15. Ra2 {[%emt 0:04:56]} a6 {[%emt 0:05:34]} 16. Qe2 {[%emt 0:14:10]} Nge7
{[%emt 0:00:47]} 17. Rc2 {[%emt 0:03:31]} Nd5 {[%emt 0:01:41]} 18. Rc4 {
[%emt 0:00:26]} Qa7 {[%emt 0:02:57]} 19. Bd2 {[%emt 0:01:50]} Bb6 {[%emt 0:01:
51]} 20. Bg5 {[%emt 0:19:28]} Rc8 {[%emt 0:01:16]} 21. Qb2 {[%emt 0:00:09]} h6
{[%emt 0:02:35]} 22. Bh4 {[%emt 0:00:32]} g5 {[%emt 0:01:04]} 23. Bg3 {[%emt 0:
00:04]} Nce7 {[%emt 0:01:49]} 24. Nbd2 {[%emt 0:02:08]} Nf4 {[%emt 0:03:25]}
25. Bf1 {[%emt 0:01:38]} Bc6 {[%emt 0:04:04]} 26. a4 {[%emt 0:04:23]} a5 {
[%emt 0:06:28]} 27. Rb1 {[%emt 0:01:22]} Bd5 {[%emt 0:00:27]} 28. bxa5 {
[%emt 0:02:10]} Bxa5 {[%emt 0:00:10]} 29. Bxf4 {[%emt 0:00:21]} gxf4 {[%emt 0:
00:29]} 30. Rxf4 {[%emt 0:00:02]} Bc3 {[%emt 0:01:30]} 31. Qa3 {[%emt 0:00:10]}
Ng6 {[%emt 0:01:29]} 32. Rxf7 {[%emt 0:00:39]} Nxe5 {[%emt 0:00:52]} 33. Qd6+ {
[%emt 0:01:13]} Ka8 {[%emt 0:00:02]} 34. Nxe5 {[%emt 0:00:11]} Bxd2 {[%emt 0:
00:05]} 35. Nc4 {[%emt 0:05:54]} Ba5 {[%emt 0:00:22]} 36. Qe5 {[%emt 0:03:22]}
Rhf8 {[%emt 0:01:36]} 37. Rxf8 {[%emt 0:02:09]} Rxf8 {[%emt 0:00:01]} 38. Ne3 {
[%emt 0:00:06]} Bb6 {[%emt 0:00:39]} 39. Qg7 {[%emt 0:00:50]} Bc5 {[%emt 0:00:
16]} 40. Qxh6 {[%emt 0:02:39]} Qxa4 {[%emt 0:00:04]} 41. Rc1 {[%emt 0:40:10]}
Qd4 {[%emt 0:24:20]} 42. h4 {[%emt 0:01:32]} Ka7 {[%emt 0:08:05]} 43. Rc2 {
[%emt 0:00:08]} Bb3 {[%emt 0:02:33]} 44. Re2 {[%emt 0:01:45]} Rh8 {[%emt 0:00:
26]} 45. Qg5 {[%emt 0:00:51]} Rxh4 {[%emt 0:00:39]} 46. Rd2 {[%emt 0:02:49]}
Qxd2 {[%emt 0:07:11]} 47. Qxc5+ {[%emt 0:00:04]} Kb8 {[%emt 0:00:08]} 48. Qf8+
{[%emt 0:00:45]} Ka7 {[%emt 0:00:01]} 49. Qa3+ {[%emt 0:00:28]} Ba4 {[%emt 0:
00:08]} 50. Nc4 {[%emt 0:02:28]} Qd1 {[%emt 0:02:10]} 51. Qc5+ {[%emt 0:02:30]}
Kb8 {[%emt 0:00:02]} 52. Qe5+ {[%emt 0:01:01]} Ka7 {[%emt 0:00:24]} 53. Qa5+ {
[%emt 0:02:01]} Kb8 {[%emt 0:00:02]} 54. Qe5+ {[%emt 0:00:04]} Ka7 {[%emt 0:00:
06]} 55. Qe3+ {[%emt 0:00:43]} Qd4 {[%emt 0:01:01]} 56. Qa3 {[%emt 0:00:03]}
Qd1 {[%emt 0:00:57]} 57. Qc5+ {[%emt 0:01:28]} 1/2-1/2

[Event "FIDE Womens Grand Swiss 2021"]
[Site "Riga"]
[Date "2021.11.07"]
[Round "11.6"]
[White "Batsiashvili, Nino"]
[Black "Javakhishvili, Lela"]
[Result "0-1"]
[ECO "E14"]
[WhiteElo "2484"]
[BlackElo "2446"]
[Annotator "RC"]
[PlyCount "104"]
[EventDate "2021.10.27"]
[EventType "swiss"]
[EventCountry "LAT"]
[Tiebreak "Cut1 Buchholz+Sonneborn-Berger (Swiss)"]
[SourceTitle "playchess.com"]
[Source "ChessBase"]
[SourceQuality "1"]
[TimeControl "40/6000+30:20/3000+30:900+30"]

1. d4 {[%emt 0:10:03]} Nf6 {[%emt 0:10:07]} 2. Nf3 {[%emt 0:00:02]} d5 {
[%emt 0:00:19]} 3. c4 {[%emt 0:00:05]} e6 {[%emt 0:00:07]} 4. Nc3 {[%emt 0:00:
07]} Nbd7 {[%emt 0:00:18]} 5. e3 {[%emt 0:05:28]} Be7 {[%emt 0:01:02]} 6. b3 {
[%emt 0:00:48]} O-O {[%emt 0:00:29]} 7. Bd3 {[%emt 0:00:22]} b6 {[%emt 0:02:52]
} 8. O-O {[%emt 0:02:42]} Bb7 {[%emt 0:00:06]} 9. Bb2 {[%emt 0:00:12]} Ne4 {
[%emt 0:07:26]} 10. Qc2 {[%emt 0:04:00]} Ndf6 {[%emt 0:04:29]} 11. Ne2 {
[%emt 0:08:09]} c5 {[%emt 0:04:15]} 12. Ne5 {[%emt 0:00:36]} cxd4 {[%emt 0:02:
50]} 13. exd4 {[%emt 0:00:43]} Rc8 {[%emt 0:02:29]} 14. Rac1 {[%emt 0:01:40]}
Nd7 {[%emt 0:02:45]} 15. Rcd1 {[%emt 0:14:45]} Bd6 {[%emt 0:06:32]} 16. f3 {
[%emt 0:02:37]} Nef6 {[%emt 0:01:29]} 17. Ng3 {[%emt 0:02:01]} dxc4 {[%emt 0:
08:25]} 18. bxc4 {[%emt 0:00:05]} b5 {[%emt 0:00:55]} 19. Nxd7 {[%emt 0:08:02]}
Qxd7 {[%emt 0:00:27]} 20. c5 {[%emt 0:00:02]} Be7 {[%emt 0:05:11]} 21. Rfe1 {
[%emt 0:02:50]} g6 {[%emt 0:01:20]} 22. Qd2 {[%emt 0:06:09]} Nd5 {[%emt 0:02:
46]} 23. Ne4 {[%emt 0:03:01]} Rfe8 {[%emt 0:02:30]} 24. Qh6 {[%emt 0:06:15]}
Bf8 {[%emt 0:03:28]} 25. Qh4 {[%emt 0:00:07]} a6 {[%emt 0:01:22]} 26. Ng5 {
[%emt 0:02:47]} f6 {[%emt 0:00:18]} 27. Nh3 {[%emt 0:01:27]} Bg7 {[%emt 0:01:
39]} 28. Re2 {[%emt 0:07:31]} f5 {[%emt 0:00:27]} 29. Rde1 {[%emt 0:01:20]} Bf6
{[%emt 0:05:46]} 30. Qh6 {[%emt 0:10:03]} Nb4 {[%emt 0:02:53]} 31. Bb1 {
[%emt 0:02:11]} Bxd4+ {[%emt 0:03:14]} 32. Bxd4 {[%emt 0:00:02]} Qxd4+ {
[%emt 0:00:05]} 33. Kh1 {[%emt 0:00:02]} Qg7 {[%emt 0:04:16]} 34. Qxg7+ {
[%emt 0:00:44]} Kxg7 {[%emt 0:00:02]} 35. Nf4 {[%emt 0:00:17]} Nd5 {[%emt 0:01:
20]} 36. Nxe6+ {[%emt 0:01:21]} Kf6 {[%emt 0:00:29]} 37. Bd3 {[%emt 0:02:22]}
Nb4 {[%emt 0:02:21]} 38. Bb1 {[%emt 0:04:42]} Rc6 {[%emt 0:08:06]} 39. a3 {
[%emt 0:02:07]} Rcxe6 {[%emt 0:01:10]} 40. Rxe6+ {[%emt 0:00:05]} Rxe6 {
[%emt 0:00:02]} 41. Rxe6+ {[%emt 0:50:16]} Kxe6 {[%emt 0:50:04]} 42. axb4 {
[%emt 0:00:04]} Ke5 {[%emt 0:00:39]} 43. Kg1 {[%emt 0:00:00]} Kd4 {[%emt 0:00:
00]} 44. Kf2 {[%emt 0:00:00]} Kc3 {[%emt 0:00:00]} 45. h4 {[%emt 0:00:00]} Kxb4
{[%emt 0:00:00]} 46. h5 {[%emt 0:00:00]} Kxc5 {[%emt 0:02:10]} 47. g4 Bc8 {
[%emt 0:00:00]} 48. Kg3 {[%emt 0:00:00]} a5 {[%emt 0:00:00]} 49. Ba2 {[%emt 0:
00:00]} gxh5 {[%emt 0:00:00]} 50. g5 {[%emt 0:00:00]} a4 {[%emt 0:00:00]} 51.
Bg8 {[%emt 0:00:00]} a3 {[%emt 0:00:00]} 52. Kh4 {[%emt 0:00:27]} Kd6 {[%emt 0:
00:00]} 0-1